bitfinex/quotes_ETHUSD_20250219
["timestamp","ask_amount","ask_price","bid_price","bid_amount"]
[1739940782728,4.97319965,2682.4,2681.9,0.1903]
[1739940783042,4.97297965,2682.6,2682.1,0.1903]
[1739940783242,4.97297965,2682.6,2681.6,5.629]
[1739940783243,3.72828,2682.2,2681.7,0.1903]
[1739940783477,1.24517965,2682.1,2681.7,0.1903]
[1739940783643,1.24517965,2681.9,2681.7,0.1903]
[1739940783847,1.24517965,2682.0,2681.8,0.07333096]
[1739940784080,1.24517965,2682.0,2681.7,0.1903]
[1739940784249,4.97381965,2682.0,2681.9,0.07323949]
[1739940784444,4.97381965,2682.0,2681.8,0.73212844]
[1739940784662,7.97381965,2682.0,2681.9,0.07323949]
[1739940785882,4.24517965,2682.0,2681.9,0.07323949]
[1739940786083,3.0,2682.0,2681.9,0.26353949]
[1739940787178,3.72815,2682.3,2681.9,0.26353949]
[1739940787565,3.72795,2682.5,2681.9,0.26353949]
[1739940787766,4.52824,2682.6,2682.0,3.72852]
[1739940787965,3.72784,2682.6,2682.1,0.26336804]
[1739940788655,3.72782,2682.6,2682.1,0.26336804]
[1739940789578,3.72796,2682.5,2682.1,0.26336804]
[1739940790080,6.21822662,2682.5,2682.1,0.26336804]
[1739940790281,2.49026662,2682.5,2682.1,0.26336804]
[1739940790641,6.21794662,2682.7,2682.2,0.1903]
[1739940790840,6.21794662,2682.7,2682.2,0.26327659]
[1739940792444,2.49026662,2682.7,2682.4,0.7330015]
[1739940792667,3.72776,2682.6,2682.4,0.7330015]
[1739940792888,3.72776,2682.6,2682.5,0.07253005]
[1739940796090,4.50016,2682.6,2682.5,0.07253005]
[1739940796708,7.50016,2682.6,2682.5,0.07253005]
[1739940796890,7.79956166,2682.6,2682.5,0.07253005]
[1739940797078,8.59396166,2682.6,2682.5,0.07253005]
[1739940797276,4.50794,2682.3,2682.2,0.73262783]
[1739940797480,6.99820662,2682.3,2682.2,0.73262783]
[1739940798109,3.72842,2682.1,2682.0,5.36]
[1739940798465,3.72842,2682.1,2682.0,6.11736513]
[1739940798864,3.72842,2682.1,2682.0,6.19024907]
[1739940799693,3.72842,2682.1,2682.0,0.83024907]
[1739940800565,3.72842,2682.1,2682.0,0.75736513]
[1739940800908,5.59279666,2682.1,2682.0,0.75736513]
[1739940801208,7.4579,2681.8,2681.4,0.4593]
[1739940801422,3.72893,2681.8,2681.4,0.4593]
[1739940801618,3.72893,2681.8,2681.7,0.74617439]
[1739940802892,2.49026662,2681.9,2681.7,0.74617439]
[1739940803422,6.21900662,2681.9,2681.7,0.74617439]
[1739940804645,7.45727,2682.0,2681.7,0.74617439]
[1739940805023,3.7287,2681.9,2681.7,0.74617439]
[1739940805346,6.21879662,2682.1,2681.8,0.1903]
[1739940805697,2.49026662,2682.1,2681.8,0.1903]
[1739940805897,3.72836,2682.2,2681.8,0.1903]
[1739940806742,3.7286,2682.0,2681.8,0.1903]
[1739940807132,7.45673,2682.2,2681.8,0.1903]
[1739940807300,7.45674,2682.2,2681.8,0.1903]
[1739940808429,3.72836,2682.2,2681.8,0.1903]
[1739940809400,3.72824,2682.3,2681.8,0.1903]
[1739940809951,6.21830662,2682.4,2681.9,3.72866]
[1739940810298,3.72776,2682.6,2682.0,3.91886]
[1739940810704,3.72776,2682.6,2682.2,0.1903]
[1739940812254,7.4556,2682.6,2682.2,0.1903]
[1739940812457,3.72776,2682.6,2682.2,0.1903]
[1739940813461,3.72776,2682.6,2682.5,0.7392679]
[1739940813856,3.72776,2682.6,2682.5,0.81214244]
[1739940816627,4.53966,2682.6,2682.5,0.81214244]
[1739940816918,5.53422166,2682.6,2682.5,0.07287454]
[1739940817328,3.7282,2682.3,2682.0,0.269]
[1739940817524,6.21868662,2682.1,2682.0,0.269]
[1739940818330,2.49026662,2682.1,2682.0,0.99810203]
[1739940820522,6.21868662,2682.1,2682.0,0.72910203]
[1739940822942,2.49026662,2682.1,2682.0,0.72910203]
[1739940823148,4.54005,2682.3,2682.0,0.72910203]
[1739940823547,3.72815,2682.3,2682.0,0.72910203]
[1739940823736,6.21833662,2682.4,2682.0,0.72910203]
[1739940824443,3.72818,2682.3,2682.0,0.72910203]
[1739940827547,3.72829,2682.2,2682.0,0.72910203]
[1739940827703,6.21833662,2682.4,2682.0,0.72910203]
[1739940828833,9.94643662,2682.4,2682.1,0.07309676]
[1739940829033,9.94642662,2682.4,2682.1,0.07309676]
[1739940829233,3.72814,2682.3,2682.1,0.07309676]
[1739940829947,3.72828,2682.2,2682.1,0.07309676]
[1739940831455,4.51604,2682.3,2682.1,0.07309676]
[1739940831632,3.72828,2682.2,2682.1,0.07309676]
[1739940833763,4.51604,2682.3,2682.1,0.07309676]
[1739940833985,8.24428,2682.3,2682.1,0.07309676]
[1739940834372,4.51604,2682.3,2682.1,0.07309676]
[1739940834779,3.72814,2682.3,2682.1,0.07309676]
[1739940835151,6.21829662,2682.4,2682.1,0.07309676]
[1739940835352,2.49026662,2682.4,2682.1,0.26339676]
[1739940835550,6.21826662,2682.4,2682.1,0.26339676]
[1739940840194,3.72814,2682.3,2682.1,0.07309676]
[1739940842793,2.49026662,2682.4,2682.1,0.07309676]
[1739940843012,6.21829662,2682.4,2682.1,0.07309676]
[1739940843183,3.72817,2682.3,2682.1,0.07309676]
[1739940843903,2.49026662,2682.4,2682.1,0.07309676]
[1739940844618,6.21834662,2682.4,2682.1,0.07309676]
[1739940844817,3.72816,2682.3,2682.1,0.07309676]
[1739940846110,3.72828,2682.2,2682.1,0.07309676]
[1739940846482,4.50988,2682.2,2682.1,0.07309676]
[1739940847206,8.58271066,2682.2,2682.1,0.07309676]
[1739940847506,8.58271066,2682.2,2682.0,0.72910203]
[1739940847711,6.21868662,2682.1,2682.0,0.72910203]
[1739940850498,9.21868662,2682.1,2682.0,0.72910203]
[1739940852830,5.49026662,2682.1,2682.0,0.72910203]
[1739940852994,2.49026662,2682.1,2682.0,0.72910203]
[1739940853194,6.21833662,2682.4,2682.0,0.72910203]
[1739940853400,3.72816,2682.3,2682.0,0.72910203]
[1739940854625,3.0,2682.3,2682.0,0.72910203]
[1739940854920,3.7283,2682.2,2682.0,0.72910203]
[1739940855127,3.0,2682.3,2682.0,0.72910203]
[1739940855425,6.72816,2682.3,2682.0,0.72910203]
[1739940855923,3.0,2682.3,2682.0,0.72910203]
[1739940856499,6.72816,2682.3,2682.0,0.72910203]
[1739940856786,3.0,2682.3,2682.0,0.72910203]
[1739940857030,6.21833662,2682.4,2682.0,0.72910203]
[1739940857199,6.21833662,2682.4,2682.1,0.1903]
[1739940858822,6.21833662,2682.4,2682.2,0.0730742]
[1739940859132,3.72814,2682.3,2682.2,0.0730742]
[1739940859333,2.49026662,2682.4,2682.2,0.0730742]
[1739940859496,6.21830662,2682.4,2682.2,0.0730742]
[1739940860425,3.72814,2682.3,2682.2,0.0730742]
[1739940860786,3.7283,2682.2,2682.0,0.72910203]
[1739940862109,2.49026662,2682.1,2682.0,0.72910203]
[1739940862411,6.21868662,2682.1,2682.0,0.72910203]
[1739940862740,4.97388536,2682.1,2682.0,0.72910203]
[1739940864696,3.72842,2682.1,2682.0,0.72910203]
[1739940872891,4.80073507,2682.1,2682.0,0.72910203]
[1739940873175,0.00031,2681.8,2681.5,0.1903]
[1739940873377,6.21983067,2681.7,2681.2,0.4593]
[1739940873678,6.21983067,2681.7,2681.6,0.07360008]
[1739940874130,6.21983067,2681.7,2681.6,0.75116984]
[1739940874333,6.21983067,2681.7,2681.6,0.82476992]
[1739940875892,2.49083067,2681.7,2681.6,0.82476992]
[1739940876650,6.21980067,2681.7,2681.6,0.82476992]
[1739940881764,2.49083067,2681.7,2681.6,0.82476992]
[1739940882553,6.21980067,2681.7,2681.6,0.82476992]
[1739940883054,7.29237374,2681.7,2681.6,0.82476992]
[1739940886717,6.04758172,2681.7,2681.6,0.07360008]
[1739940887058,6.04758172,2681.7,2681.2,0.1903]
[1739940887059,3.72925,2681.6,2681.2,0.1903]
[1739940887260,1.24603865,2681.3,2681.2,0.1903]
[1739940887571,1.24603865,2681.3,2681.2,0.92899454]
[1739940888793,1.24603865,2681.3,2681.2,1.00306975]
[1739940891392,4.97556865,2681.3,2681.2,0.81276975]
[1739940891547,6.61606552,2681.3,2681.2,0.81276975]
[1739940891970,6.61606552,2681.3,2681.2,0.73869454]
[1739940892383,6.61606552,2681.3,2681.2,0.81276975]
[1739940892689,10.86210417,2681.3,2681.2,0.07407521]
[1739940893079,3.73004,2681.0,2680.6,5.5503]
[1739940893280,1.24603865,2680.7,2680.6,5.5503]
[1739940894155,1.24603865,2680.7,2680.6,6.27947055]
[1739940895257,4.97639865,2680.7,2680.6,0.72917055]
[1739940897097,1.24603865,2680.7,2680.6,0.72917055]
[1739940898556,9.22284394,2681.0,2680.6,0.72917055]
[1739940899977,12.95288394,2681.0,2680.6,0.72917055]
[1739940900175,9.22284394,2681.0,2680.6,0.72917055]
[1739940900385,3.73018,2680.9,2680.6,0.72917055]
[1739940901205,9.22284394,2681.0,2680.6,0.72917055]
[1739940901800,2.49289394,2681.0,2680.7,0.1903]
[1739940902506,6.22287394,2681.0,2680.7,0.1903]
[1739940902667,2.49289394,2681.0,2680.7,0.1903]
[1739940903186,6.22287394,2681.0,2680.7,0.1903]
[1739940903794,3.73009,2680.9,2680.8,0.07565927]
[1739940903998,9.95293394,2681.0,2680.8,0.07565927]
[1739940904209,6.22287394,2681.0,2680.7,0.1903]
[1739940904508,6.22287394,2681.0,2680.9,0.07556772]
[1739940904798,6.22287394,2681.0,2680.9,0.07563095]
[1739940905005,6.22287394,2681.0,2680.7,0.1903]
[1739940905206,6.22287394,2681.0,2680.9,0.07563095]
[1739940905410,3.73009,2680.9,2680.8,0.07572249]
[1739940905656,9.95295394,2681.0,2680.7,0.1903]
[1739940905860,6.22287394,2681.0,2680.8,0.07572249]
[1739940906155,6.22287394,2681.0,2680.7,0.1903]
[1739940906156,9.95293394,2681.0,2680.7,0.1903]
[1739940906449,9.95293394,2681.0,2680.8,0.07572249]
[1739940906450,7.51759,2680.9,2680.8,0.07572249]
[1739940906655,10.01048394,2680.9,2680.8,0.07572249]
[1739940906850,6.73036,2680.7,2680.6,0.72917055]
[1739940907207,3.0,2680.7,2680.6,0.72917055]
[1739940907407,6.73036,2680.7,2680.6,0.72917055]
[1739940908047,3.0,2680.7,2680.6,0.72917055]
[1739940908454,3.32219394,2681.1,2680.6,0.91947055]
[1739940908616,3.73022,2680.8,2680.6,0.91947055]
[1739940908956,3.73036,2680.7,2680.6,0.72917055]
[1739940915375,3.73086,2680.4,2680.0,0.4593]
[1739940915757,3.73094,2680.3,2680.0,0.1903]
[1739940916374,3.73094,2680.3,2680.2,0.72930961]
[1739940916670,3.27969394,2680.5,2680.2,0.72930961]
[1739940916671,7.01046394,2680.5,2680.2,0.72930961]
[1739940916833,3.73082,2680.4,2680.2,0.72930961]
[1739940917020,7.01038394,2680.5,2680.2,0.72930961]
[1739940917648,3.73079,2680.4,2680.2,0.72930961]
[1739940918729,3.73092,2680.3,2680.2,0.72930961]
[1739940919536,3.73079,2680.4,2680.2,0.72930961]
[1739940920361,3.73092,2680.3,2680.2,0.72930961]
[1739940924456,3.73142,2680.0,2679.8,0.1903]
[1739940924661,6.22431394,2680.0,2679.8,0.1903]
[1739940926031,9.95575394,2680.0,2679.6,0.1903]
[1739940926230,9.95575394,2680.0,2679.9,0.75015611]
[1739940926443,6.22431394,2680.0,2679.9,0.75015611]
[1739940928771,7.29531633,2680.0,2679.9,0.75015611]
[1739940928930,3.732,2679.6,2679.3,5.5503]
[1739940929272,7.46403,2679.6,2679.3,0.1903]
[1739940929453,3.732,2679.6,2679.3,0.1903]
[1739940929651,7.03895394,2679.9,2679.3,3.92253]
[1739940930086,3.30739394,2679.9,2679.5,0.75130541]
[1739940930289,6.22445394,2679.9,2679.6,0.1903]
[1739940930648,2.49289394,2679.9,2679.6,0.1903]
[1739940930867,3.73122,2680.1,2679.6,0.1903]
[1739940931759,3.73137,2680.0,2679.6,0.1903]
[1739940932190,7.4628,2680.0,2679.6,0.1903]
[1739940932356,7.46281,2680.0,2679.6,0.1903]
[1739940932678,2.49289394,2679.9,2679.6,0.1903]
[1739940933183,3.73129,2680.1,2679.6,0.1903]
[1739940933653,7.01964394,2680.2,2679.6,0.1903]
[1739940933654,4.52675,2680.2,2679.6,3.92219]
[1739940933852,6.7312,2680.1,2679.7,0.07777631]
[1739940934368,3.0,2680.1,2679.7,0.07777631]
[1739940934582,7.01964394,2680.2,2679.7,0.07777631]
[1739940934744,6.22404394,2680.2,2679.7,0.07777631]
[1739940935185,2.49289394,2680.2,2679.7,0.07777631]
[1739940935391,6.22397394,2680.2,2680.0,0.74749015]
[1739940935617,2.49289394,2680.2,2680.1,0.07740988]
[1739940935750,0.7956,2679.8,2678.7,3.73315]
[1739940935951,2.49289394,2679.3,2678.8,0.1903]
[1739940936269,2.49289394,2679.3,2678.9,3.73287]
[1739940936676,2.49289394,2679.6,2678.8,0.1903]
[1739940936988,5.49289394,2679.6,2679.2,0.74544059]
[1739940937287,2.49289394,2679.6,2679.3,0.1903]
[1739940937701,3.73205,2679.5,2679.2,0.74544059]
[1739940938269,6.22520394,2679.3,2679.2,0.74544059]
[1739940939344,2.49289394,2679.3,2679.2,0.74544059]
[1739940940769,3.73205,2679.5,2679.2,0.74544059]
[1739940941095,5.49289394,2679.6,2679.2,0.74544059]
[1739940942506,9.22479394,2679.6,2679.2,0.74544059]
[1739940943215,9.22479394,2679.6,2679.3,0.07259809]
[1739940943362,9.22479394,2679.6,2679.2,0.74544059]
[1739940943564,9.22479394,2679.6,2679.3,0.07259809]
[1739940943763,9.22479394,2679.6,2679.2,0.74544059]
[1739940944077,9.22479394,2679.6,2679.3,0.07259809]
[1739940944401,9.22479394,2679.6,2679.2,0.74544059]
[1739940944612,2.49289394,2679.3,2679.2,0.74544059]
[1739940944966,6.22520394,2679.3,2679.2,0.74544059]
[1739940945365,7.29824933,2679.3,2679.2,0.74544059]
[1739940948307,6.22520394,2679.3,2679.2,0.74544059]
[1739940948807,6.22520394,2679.3,2679.2,0.81908363]
[1739940948979,2.49289394,2679.3,2679.2,0.81908363]
[1739940949803,3.73225,2679.4,2679.2,0.81908363]
[1739940950014,3.0,2679.5,2679.2,0.81908363]
[1739940950308,3.0,2679.5,2679.3,0.1903]
[1739940950617,6.73204,2679.5,2679.4,0.07344825]
[1739940951117,3.0,2679.5,2679.4,0.07344825]
[1739940951408,3.73142,2680.0,2679.5,0.1903]
[1739940951569,3.0,2679.9,2679.5,0.1903]
[1739940951769,3.0,2679.9,2679.6,0.07320754]
[1739940952075,3.73142,2680.0,2679.6,0.07320754]
[1739940952608,3.7317,2679.8,2679.6,0.07320754]
[1739940952785,7.46342,2679.8,2679.6,0.07320754]
[1739940952990,3.7317,2679.8,2679.6,0.07320754]
[1739940953306,3.73176,2679.7,2679.6,0.07320754]
[1739940953691,3.73176,2679.7,2679.3,0.1903]
[1739940953900,3.7317,2679.8,2679.6,0.0731501]
[1739940954097,3.7317,2679.8,2679.3,0.1903]
[1739940954405,6.7317,2679.8,2679.3,3.92257]
[1739940954614,6.7317,2679.8,2679.4,0.07333337]
[1739940955306,3.0,2679.7,2679.4,0.07333337]
[1739940955474,3.7317,2679.8,2679.4,0.07333337]
[1739940957409,3.0,2679.8,2679.4,0.07333337]
[1739940957568,3.0,2679.7,2679.4,0.07333337]
[1739940957777,3.0,2680.0,2679.5,3.73202]
[1739940957975,3.7959,2680.1,2679.6,0.2634501]
[1739940958198,3.0,2679.9,2679.6,0.2634501]
[1739940958377,3.73135,2680.0,2679.6,0.2634501]
[1739940958698,3.0,2679.9,2679.6,0.2634501]
[1739940958937,3.73167,2679.8,2679.6,0.2634501]
[1739940959225,5.49289394,2679.9,2679.6,0.2634501]
[1739940959377,9.22439394,2679.9,2679.6,0.2634501]
[1739940960411,5.49289394,2679.9,2679.6,0.2634501]
[1739940961108,2.49289394,2679.9,2679.7,0.76406864]
[1739940961420,6.73124,2680.1,2679.8,0.07270841]
[1739940961717,3.73148,2679.9,2679.7,0.76406864]
[1739940962834,3.73134,2680.0,2679.7,0.76406864]
[1739940963040,3.0,2679.9,2679.7,0.76406864]
[1739940963507,2.49289394,2679.9,2679.7,0.76406864]
[1739940963714,6.73162,2679.8,2679.7,0.76406864]
[1739940964530,3.0,2679.8,2679.7,0.76406864]
[1739940969147,3.7319,2679.6,2679.2,0.1903]
[1739940969516,3.73187,2679.7,2679.2,0.1903]
[1739940970267,3.0,2679.6,2679.2,3.92273]
[1739940970447,3.0,2679.6,2679.5,0.7405634]
[1739940976783,3.7755,2679.6,2679.5,0.7405634]
[1739940977039,8.258119,2679.6,2679.5,0.7405634]
[1739940977201,10.75101294,2679.6,2679.5,0.7405634]
[1739940978009,7.01911294,2679.6,2679.1,5.36]
[1739940978309,3.73206,2679.5,2679.1,5.36]
[1739940978602,3.73206,2679.5,2679.4,0.73652355]
[1739940978901,3.73206,2679.5,2679.4,0.80962143]
[1739940979649,7.01911294,2679.6,2679.4,0.80962143]
[1739940979848,10.75102294,2679.6,2679.4,0.80962143]
[1739940980067,1.07510229,2679.5,2679.4,0.80962143]
[1739940980267,10.00030394,2679.6,2679.4,0.80962143]
[1739940980481,13.73228394,2679.6,2679.4,0.80962143]
[1739940981010,3.73203,2679.5,2679.4,0.80962143]
[1739940982119,13.73230394,2679.6,2679.4,0.80962143]
[1739940982914,10.00030394,2679.6,2679.4,0.80962143]
[1739940983116,11.37349833,2679.6,2679.4,0.80962143]
[1739940983481,15.10548833,2679.6,2679.4,0.80962143]
[1739940983682,3.73203,2679.5,2679.4,0.80962143]
[1739940984718,6.73203,2679.5,2679.4,0.07309788]
[1739940984893,9.30728283,2679.5,2679.4,0.07309788]
[1739940985227,3.73253,2679.2,2678.9,5.36]
[1739940985517,3.73253,2679.2,2679.0,0.07351047]
[1739940986507,3.73253,2679.2,2679.1,0.75951261]
[1739940986686,7.56433,2679.2,2679.1,0.75951261]
[1739940987044,8.94328439,2679.2,2679.1,0.0734188]
[1739940987204,8.94328439,2679.2,2678.5,5.8193]
[1739940987205,3.0,2679.1,2678.5,5.8193]
[1739940987406,3.73275,2679.0,2678.6,0.0738772]
[1739940987601,3.73275,2679.0,2678.9,0.75824064]
[1739940987806,3.73275,2679.0,2678.9,0.83184278]
[1739940988008,4.32710044,2679.0,2678.9,0.83184278]
[1739940988195,7.59439438,2679.0,2678.9,0.83184278]
[1739940988401,7.59439438,2679.0,2678.9,0.75824064]
[1739940988786,7.59439438,2679.0,2678.9,0.07360214]
[1739940988986,10.59439438,2679.0,2678.5,5.629]
[1739940989186,4.79242944,2678.9,2678.6,0.0738772]
[1739940989523,7.79242944,2678.9,2678.8,0.75502332]
[1739940989886,7.79242944,2678.9,2678.8,0.82871714]
[1739940993814,9.13852944,2678.9,2678.0,8.5833]
[1739940993990,8.07938,2678.7,2678.6,0.00204172]
[1739940994187,10.57227394,2678.7,2678.6,0.07360871]
[1739940999940,10.85967112,2678.7,2678.6,0.07360871]
[1739941000439,10.85967112,2678.7,2678.6,0.00204172]
[1739941000647,13.12817266,2678.7,2678.6,0.00204172]
[1739941001497,13.12817266,2678.7,2678.6,0.07360871]
[1739941001697,13.12817266,2678.7,2678.6,0.00204172]
[1739941009416,13.69859706,2678.7,2678.6,0.00204172]
[1739941010732,13.12817266,2678.7,2678.6,0.00204172]
[1739941011836,3.7344,2677.8,2677.7,0.0051477]
[1739941012035,10.93435834,2677.8,2677.7,0.0051477]
[1739941012252,10.36393394,2677.8,2677.7,0.0051477]
[1739941012463,9.60073394,2677.8,2677.7,0.0051477]
[1739941012643,3.0,2677.8,2677.7,0.0051477]
[1739941012844,3.0,2677.8,2677.7,0.07792531]
[1739941014246,3.7344,2677.8,2677.7,0.07792531]
[1739941017789,7.46841,2678.0,2677.7,0.07792531]
[1739941018073,3.73417,2678.0,2677.7,0.07792531]
[1739941018445,3.73427,2677.9,2677.7,0.07792531]
[1739941019343,3.7344,2677.8,2677.7,0.07792531]
[1739941022281,3.73427,2677.9,2677.7,0.07792531]
[1739941023072,3.7344,2677.8,2677.7,0.07792531]
[1739941023981,3.73427,2677.9,2677.7,0.07792531]
[1739941024179,3.73427,2677.9,2677.7,0.26822531]
[1739941024696,3.7344,2677.8,2677.7,0.07792531]
[1739941025223,4.73055639,2677.8,2677.7,0.07792531]
[1739941025420,8.49355639,2677.8,2677.7,0.07792531]
[1739941025622,8.49355639,2677.8,2677.7,0.0051477]
[1739941026535,14.42355639,2677.8,2677.7,0.0051477]
[1739941028295,14.92823079,2677.8,2677.7,0.0051477]
[1739941029349,14.92823079,2677.8,2677.1,0.005]
[1739941029350,4.51634,2677.2,2677.1,0.005]
[1739941029499,10.46086794,2677.2,2677.1,0.005]
[1739941029724,10.46086794,2677.2,2677.1,0.07965026]
[1739941029925,10.46086794,2677.2,2677.1,0.005]
[1739941030125,10.46086794,2677.2,2677.1,0.07965026]
[1739941030354,10.46086794,2677.2,2677.1,0.005]
[1739941030519,10.46086794,2677.2,2677.1,0.07965026]
[1739941030719,10.46086794,2677.2,2677.1,0.005]
[1739941031032,11.01086794,2677.2,2677.1,0.005]
[1739941031553,10.46086794,2677.2,2677.1,0.005]
[1739941032729,3.73594,2676.7,2676.4,8.398]
[1739941032930,3.73674,2676.2,2676.0,0.1903]
[1739941033163,3.73757,2675.6,2675.2,0.1903]
[1739941033314,6.60436094,2675.5,2675.0,0.3390339]
[1739941033520,3.73778,2675.4,2675.0,0.3390339]
[1739941034374,2.49289394,2675.2,2675.0,0.1487339]
[1739941034668,3.73817,2675.1,2675.0,0.0987339]
[1739941034959,2.49289394,2675.4,2675.0,0.0987339]
[1739941035117,11.61052394,2675.5,2675.0,0.0987339]
[1739941035319,3.0,2675.4,2675.0,0.0987339]
[1739941035617,3.0,2675.4,2675.1,0.1903]
[1739941035618,5.49289394,2675.4,2675.1,0.1903]
[1739941035817,5.49289394,2675.4,2675.0,0.0987339]
[1739941036017,2.49289394,2675.1,2675.0,0.0987339]
[1739941036240,6.23106394,2675.1,2675.0,0.0987339]
[1739941036454,9.23106394,2675.1,2675.0,0.0987339]
[1739941037048,5.49289394,2675.1,2675.0,0.0987339]
[1739941037275,9.23106394,2675.1,2675.0,0.0987339]
[1739941037478,10.71583527,2675.1,2675.0,0.0987339]
[1739941040027,10.71583527,2675.1,2673.5,0.1903]
[1739941040028,0.7912,2674.9,2673.5,0.1903]
[1739941040306,6.23256394,2674.1,2673.7,0.07894953]
[1739941040462,2.49289394,2673.8,2673.7,0.07894953]
[1739941040661,2.49289394,2673.8,2673.2,3.93108]
[1739941040903,2.49289394,2673.8,2673.4,3.74049]
[1739941041130,3.0,2674.0,2673.6,3.74025]
[1739941041325,6.23195394,2674.5,2673.7,0.92407719]
[1739941041622,2.49289394,2674.8,2674.1,3.73948]
[1739941041779,6.73874,2674.7,2674.1,3.73948]
[1739941041980,3.0,2674.7,2674.3,0.1903]
[1739941042279,7.30403933,2674.8,2674.4,0.07830546]
[1739941042481,3.0,2674.7,2674.4,0.07830546]
[1739941043594,2.49289394,2674.8,2674.4,0.07830546]
[1739941043796,3.0,2675.0,2674.4,0.07830546]
[1739941043996,3.0,2675.0,2674.3,3.92959]
[1739941044198,4.60958753,2675.0,2674.3,3.92959]
[1739941044398,4.60958753,2675.0,2674.5,0.76195328]
[1739941045023,2.49289394,2675.5,2674.7,0.1903]
[1739941045223,2.49289394,2675.8,2675.2,0.1903]
[1739941045382,5.38,2675.9,2675.3,3.73782]
[1739941045583,6.22976394,2676.1,2675.3,3.81610469]
[1739941045786,4.24294639,2676.0,2675.3,0.07828469]
[1739941046027,2.49289394,2675.8,2675.3,0.07828469]
[1739941046383,2.49289394,2675.8,2675.2,3.92832]
[1739941046583,2.49289394,2675.8,2675.4,3.81593277]
[1739941046891,2.49289394,2675.8,2675.5,0.07810086]
[1739941047088,2.49289394,2675.8,2675.3,3.73778]
[1739941047421,2.49289394,2675.8,2675.4,0.07819277]
[1739941047588,3.0,2675.7,2675.4,0.07819277]
[1739941047923,6.97745997,2675.8,2675.5,0.07810086]
[1739941047924,3.24016997,2675.8,2675.5,0.07810086]
[1739941048082,6.73747,2675.6,2675.5,0.07810086]
[1739941048288,3.73821,2675.1,2674.9,5.36]
[1739941048523,6.99400394,2675.1,2675.0,0.0785605]
[1739941049029,6.99400394,2675.1,2674.8,0.73537457]
[1739941049527,3.0,2675.0,2674.8,0.73537457]
[1739941049933,3.0,2675.0,2674.9,0.08046616]
[1739941050114,5.49289394,2675.1,2674.9,0.08046616]
[1739941050489,6.07042697,2675.1,2674.9,0.08046616]
[1739941050713,3.0,2675.3,2674.9,0.08046616]
[1739941051030,3.0,2675.3,2675.1,0.1903]
[1739941051326,3.0,2675.3,2675.2,0.08019034]
[1739941052030,5.38,2675.4,2675.2,3.81822034]
[1739941052266,6.81881961,2675.8,2675.2,3.81822034]
[1739941052416,3.68188196,2675.7,2675.2,3.81822034]
[1739941052599,3.68188196,2675.7,2675.1,0.1903]
[1739941052807,3.68188196,2675.7,2675.3,0.0770846]
[1739941053003,3.68188196,2675.7,2675.2,3.81520653]
[1739941053214,3.68188196,2675.7,2675.4,0.07699268]
[1739941053448,1.05007016,2675.6,2675.3,0.0770846]
[1739941053626,4.78754016,2675.6,2675.5,0.07690077]
[1739941053795,3.0,2675.5,2675.4,0.07699268]
[1739941053997,3.0,2675.5,2675.1,0.1903]
[1739941054657,3.84694221,2675.5,2675.2,0.07717653]
[1739941054795,0.84694221,2675.5,2675.2,3.81520653]
[1739941055102,1.05007016,2675.6,2675.2,3.81520653]
[1739941055309,1.05007016,2675.6,2675.2,0.07717653]
[1739941056250,3.7764,2675.5,2675.2,0.07717653]
[1739941056464,3.7764,2675.5,2675.0,3.7383]
[1739941056616,3.0,2675.5,2675.0,3.7383]
[1739941056816,3.0,2675.5,2675.1,0.07670933]
[1739941057117,3.0,2675.7,2675.2,0.1903]
[1739941057344,0.673726,2675.6,2675.3,0.07652547]
[1739941057736,3.73775,2675.4,2674.9,9.2887]
[1739941058115,3.0,2675.3,2674.9,5.5503]
[1739941058463,3.0,2675.3,2674.9,5.36]
[1739941058464,3.0,2675.1,2674.9,5.36]
[1739941058668,3.0,2675.1,2674.8,0.73537457]
[1739941059468,6.73845,2674.9,2674.8,0.73537457]
[1739941059669,3.0,2674.9,2674.4,0.1903]
[1739941059957,3.0,2674.9,2674.4,3.92936]
[1739941060122,3.0,2674.9,2674.4,7.6684]
[1739941060313,3.0,2674.9,2674.5,3.739]
[1739941060650,4.563316,2675.2,2674.5,3.739]
[1739941060849,4.563316,2675.2,2674.6,3.73878]
[1739941061060,8.301466,2675.2,2674.5,3.73892]
[1739941061234,3.0,2675.0,2674.7,0.73784064]
[1739941061433,3.73841,2675.0,2674.7,0.73784064]
[1739941061621,3.73841,2675.0,2674.8,0.07703128]
[1739941061819,3.73841,2675.0,2674.7,0.73784064]
[1739941062053,3.73841,2675.0,2674.8,0.07703128]
[1739941062215,3.73841,2675.0,2674.7,0.73784064]
[1739941062417,3.73841,2675.0,2674.8,0.07703128]
[1739941062670,3.73841,2675.0,2674.7,0.73784064]
[1739941062870,3.73841,2675.0,2674.8,0.07703128]
[1739941063019,3.73841,2675.0,2674.7,0.73784064]
[1739941063222,3.73841,2675.0,2674.8,0.07703128]
[1739941063451,3.0,2674.9,2674.7,0.73784064]
[1739941063873,3.73905,2674.5,2673.9,3.93013]
[1739941064076,7.47772,2674.7,2674.0,3.73961]
[1739941064371,3.73885,2674.7,2674.0,3.73961]
[1739941064575,6.73897,2674.6,2673.9,3.93006]
[1739941064740,6.73897,2674.6,2673.9,7.66982]
[1739941064925,3.73904,2674.5,2673.9,4.20706]
[1739941065123,3.73904,2674.5,2674.3,0.76825639]
[1739941065328,1.829382,2674.6,2673.9,0.1903]
[1739941065556,0.7816,2674.6,2673.9,0.1903]
[1739941065761,3.73911,2674.5,2673.9,0.1903]
[1739941066335,0.7816,2674.6,2674.2,0.73917507]
[1739941066336,3.7816,2674.6,2674.2,0.73917507]
[1739941066540,7.52058,2674.6,2674.2,0.73917507]
[1739941066741,3.73902,2674.5,2674.2,0.73917507]
[1739941067037,3.0,2674.6,2674.2,0.73917507]
[1739941067286,3.73913,2674.5,2674.2,0.73917507]
[1739941067440,3.7392,2674.4,2674.2,0.73917507]
[1739941067976,3.73918,2674.4,2674.2,0.73917507]
[1739941068139,3.73929,2674.3,2674.2,0.73917507]
[1739941068347,3.73913,2674.5,2674.2,0.73917507]
[1739941068527,0.4491169,2674.4,2674.2,0.73917507]
[1739941068727,0.4491169,2674.4,2674.3,0.07790619]
[1739941068962,1.2538169,2674.4,2674.2,0.73917507]
[1739941069138,4.9929669,2674.4,2674.3,0.07701333]
[1739941069353,0.4491169,2674.4,2674.3,0.07701333]
[1739941069675,0.4491169,2674.4,2674.2,0.73917507]